[Event "31st Kavala Open-A 2022"]
[Site "Kavala"]
[Date "2022.07.26"]
[Round "1.7"]
[White "Halkias, Stelios"]
[Black "Sirigos, Nikolaos"]
[Result "1-0"]
[ECO "B07"]
[WhiteElo "2512"]
[BlackElo "2170"]
[Annotator "TA"]
[PlyCount "78"]
[EventDate "2022.07.27"]
[EventType "swiss"]
[EventCountry "GRE"]
[SourceTitle "playchess.com"]
[Source "ChessBase"]
[SourceQuality "1"]
[TimeControl "40/5400+30:1800+30"]

{[%evp 14,78,32,23,25,17,20,0,0,0,0,-5,-5,-21,-29,-16,37,24,27,-23,51,55,58,58,59,62,55,79,84,70,61,64,61,71,66,40,94,55,84,69,54,45,64,80,87,57,85,76,112,120,108,104,148,149,146,152,169,156,158,114,293,276,266,275,565,490,1493]} 1. Nf3 {[%emt 0:00:09]} Nf6 {[%emt 0:00:45]} 2. d4 {[%emt 0:00:51]} g6 {[%emt 0:00:41]} 3. g3 {[%emt 0:00:27]} Bg7 {[%emt 0:00:06]} 4. Bg2 {[%emt 0:00:14]} O-O {[%emt 0:00:15]} 5. O-O {[%emt 0:00:07]} d6 {[%emt 0:00:39]} 6. Re1 {[%emt 0:00:41]} Nbd7 {[%emt 0:01:38]} 7. e4 {[%emt 0:00:17]} e5 {[%emt 0:00:09]} 8. Nc3 {[%emt 0:00:15]} b6 {[%emt 0:02:59] B07: Pirc Defence: Miscellaneous Systems.} 9. dxe5 {[%emt 0:16:06]} dxe5 {[%emt 0:01:15]} 10. Nd5 {[%emt 0:01:41]} Bb7 {[%emt 0:18:21] The position is equal.} 11. Bg5 {[%emt 0:09:44]} Re8 {[%emt 0:07:07] [#]} 12. Nd2 $146 {[%emt 0:11:49]} ({Predecessor:} 12. c4 h6 13. Bd2 Nc5 14. Qc2 c6 15. Nxf6+ Qxf6 16. b4 Na6 17. c5 bxc5 18. bxc5 {1-0 (29) Burmakin,V (2582)-Starosek,K (2495) Ekaterinburg 2002}) 12... h6 {[%emt 0:02:10]} 13. Be3 {[%emt 0:04:13]} Nxd5 {[%emt 0:01:02]} 14. exd5 {[%emt 0:00:25]} Nf6 {[%emt 0:00:58]} (14... f5 $11) 15. c4 $14 {[%emt 0:00:33]} Qd7 {[%emt 0:00:44]} 16. Nb1 {[%emt 0:21:59]} ({White should play} 16. b4) 16... b5 {[%emt 0:12:21]} (16... Ng4 $11) 17. cxb5 {[%emt 0:02:54]} Nxd5 {[%emt 0:10:42]} 18. Nc3 {[%emt 0:01:20]} e4 $1 {[%emt 0:03:37]} 19. Nxe4 {[%emt 0:05:00] Hoping for Nc5.} Qxb5 {[%emt 0:01:57]} 20. Bd4 {[%emt 0:02:29]} Qb4 {[%emt 0:12:53]} 21. Bxg7 {[%emt 0:02:55]} Kxg7 {[%emt 0:00:13]} 22. a3 {[%emt 0:00:29]} Qb6 {[%emt 0:01:02]} (22... Qxb2 $2 23. Rb1 Qe5 24. f4 $18) 23. Qc2 {[%emt 0:01:24]} Rad8 {[%emt 0:05:06]} 24. Rac1 {[%emt 0:04:59]} Ba8 {[%emt 0:02:05]} (24... Bc8 $14) 25. b3 {[%emt 0:01:36]} Kg8 {[%emt 0:03:45]} 26. Rcd1 {[%emt 0:01:23]} Re6 {[%emt 0:01:50]} 27. Nc5 {[%emt 0:03:52]} (27. Qc1 {is more complex.} Kg7 28. Qa1+ Kh7 29. Nd2) 27... Rxe1+ {[%emt 0:00:55]} 28. Rxe1 {[%emt 0:00:02]} Qf6 {[%emt 0:00:58]} 29. Ne4 {[%emt 0:01:04]} Qe7 {[%emt 0:02:09] [#]} 30. Qc1 $1 {[%emt 0:00:51]} Kh7 {[%emt 0:01:55]} 31. h4 {[%emt 0:00:39][%cal Oe4g5] Ng5+! is the strong threat.} Qf8 {[%emt 0:00:31]} 32. Rd1 {[%emt 0:01:52][%cal Od1d5] Threatens to win with Rxd5! White is more active.} f5 {[%emt 0:01:19]} 33. Nc5 {[%emt 0:01:25] And now Ne6 would win.} Rd6 {[%emt 0:00:12] [#] Prevents Ne6.} 34. Re1 $1 {[%emt 0:00:56]} Qf6 {[%emt 0:00:56]} 35. b4 {[%emt 0:00:25]} Bc6 {[%emt 0:00:44]} 36. Qc4 {[%emt 0:01:28]} Ne7 $2 {[%emt 0:02:19] A mistake that costs the game.} (36... Nb6 $16 37. Qe2 Bxg2) 37. Bxc6 $18 {[%emt 0:01:03]} Rxc6 {[%emt 0:00:29]} 38. Qe2 {[%emt 0:00:45]} Nd5 {[%emt 0:01:40]} (38... Ng8 39. Qe8 Rd6) 39. Qe8 {[%emt 0:00:35]} f4 {[%emt 0:00:39] Weighted Error Value: White=0.09 (flawless) /Black=0.31} (39... Rd6 $142 40. Nd7 Qg7) 1-0

[Event "31st Kavala Open-A 2022"]
[Site "Kavala"]
[Date "2022.07.26"]
[Round "1.8"]
[White "Dorfanis, Ilarion"]
[Black "Beerdsen, Thomas"]
[Result "1/2-1/2"]
[ECO "E54"]
[WhiteElo "2141"]
[BlackElo "2500"]
[Annotator "TA"]
[PlyCount "70"]
[EventDate "2022.07.27"]
[EventType "swiss"]
[EventCountry "GRE"]
[SourceTitle "playchess.com"]
[Source "ChessBase"]
[SourceQuality "1"]
[TimeControl "40/5400+30:1800+30"]

{[%evp 22,70,44,39,31,0,57,0,0,0,0,-37,-38,-39,-51,-49,0,0,-10,0,-7,-11,104,93,165,143,138,36,39,37,33,0,24,22,72,68,100,0,0,0,293,72,146,116,97,0,136,0,106,0,53]} 1. d4 {[%emt 0:00:23]} Nf6 {[%emt 0:00:06]} 2. c4 {[%emt 0:00:30]} e6 {[%emt 0:00:08]} 3. Nc3 {[%emt 0:00:00]} Bb4 {[%emt 0:00:07]} 4. e3 {[%emt 0:01:17]} O-O {[%emt 0:00:26]} 5. Bd3 {[%emt 0:00:31]} c5 {[%emt 0:00:20]} 6. Nf3 {[%emt 0:00:53]} d5 {[%emt 0:00:17]} 7. O-O {[%emt 0:01:10]} cxd4 {[%emt 0:00:13]} 8. exd4 {[%emt 0:00:07]} dxc4 {[%emt 0:00:06]} 9. Bxc4 {[%emt 0:00:06]} b6 {[%emt 0:00:07]} 10. Ne5 {[%emt 0:04:55]} Bb7 {[%emt 0:01:44]} 11. Bg5 {[%emt 0:01:31]} Be7 {[%emt 0:07:20]} 12. Qe2 {[%emt 0:16:52]} Nc6 {[%emt 0:17:53] E54: Nimzo-Indian: Rubinstein: Main Line: 7...dxc4 8 Bxc4.} 13. Rad1 {[%emt 0:12:09][%cal Oc4e6]} Rc8 {[%emt 0:08:28] [#]} (13... Nxd4 14. Qe3 $16) (13... Nb4 $11) 14. Ba6 $146 {[%emt 0:10:48]} (14. Nxf7 $1 $14 Rxf7 15. d5 (15. Qxe6 Qf8 $11)) ({Predecessor:} 14. Rfe1 Nb4 15. Nxf7 Rxf7 16. Bxe6 Rc7 17. d5 Rd7 18. d6 Rxd6 19. Bxf6 gxf6 20. Rxd6 Bxd6 21. Bxf7+ Kxf7 {½-½ (90) Shomoev,A (2579)-Inarkiev,E (2695) Nizhnij Novgorod 2013}) 14... Bxa6 $11 {[%emt 0:13:43]} 15. Qxa6 {[%emt 0:00:05]} Nd5 {[%emt 0:05:03]} 16. Bxe7 {[%emt 0:05:53]} Ncxe7 {[%emt 0:03:27]} 17. Nxd5 {[%emt 0:07:50]} Nxd5 {[%emt 0:00:25]} 18. Rc1 {[%emt 0:02:08]} Nf4 {[%emt 0:02:49]} (18... Rc7 $15 {might be stronger.}) 19. Rxc8 {[%emt 0:03:31]} Qxc8 {[%emt 0:00:06]} 20. Qxa7 {[%emt 0:03:23]} f6 {[%emt 0:02:05]} 21. Nf3 {[%emt 0:06:07]} e5 {[%emt 0:01:13]} (21... Qc6 $11 22. Qa3 Rd8) 22. Qxb6 $16 {[%emt 0:07:30]} Qg4 {[%emt 0:01:30]} (22... Qc4 $16 {might work better.}) 23. Qb3+ $18 {[%emt 0:00:23]} Kh8 {[%emt 0:00:08][%csl Gf4][%cal Rg4g2]} 24. Ne1 {[%emt 0:04:16]} (24. g3 $16) 24... Ne2+ $14 {[%emt 0:03:12]} 25. Kh1 {[%emt 0:00:02] dxe5 is the strong threat.} Nxd4 {[%emt 0:00:31]} 26. Qb4 $40 {[%emt 0:02:40][%cal Rb4f8][%mdl 128] White has some attack.} (26. Qd3 $5 {[%cal Rf2f4]}) 26... Qc8 {[%emt 0:01:44]} (26... Rc8 $5 {[%cal Rg4e2]}) 27. Nd3 {[%emt 0:00:40]} Qa8 {[%emt 0:00:35]} (27... Rd8 $11 {keeps the balance.}) 28. Rc1 {[%emt 0:02:02]} Rd8 {[%emt 0:02:04] [#]} 29. Qe7 {[%emt 0:02:38]} (29. Qc4 $1 $16) 29... h6 $11 {[%emt 0:02:52]} 30. h3 {[%emt 0:01:20]} ({Avoid the trap} 30. Rc7 $2 Nf5 31. Qe6 Qe4 $19) 30... Kh7 $2 {[%emt 0:02:25][%mdl 8192]} (30... Ne2 $11 {and Black is okay.} 31. Rc7 Rg8) 31. Nc5 $2 {[%emt 0:02:47]} (31. Rc7 $18 {[%csl Gc7][%cal Re7g7] is the precise move to win.} Rg8 32. Qxf6 Qxa2 33. Nxe5 Qb1+ 34. Kh2) 31... Re8 {[%emt 0:05:00]} (31... Qd5 $142) 32. Qd7 {[%emt 0:00:50]} Rd8 {[%emt 0:00:35]} 33. Qe7 {[%emt 0:00:26]} Re8 $1 {[%emt 0:00:09]} 34. Qd7 {[%emt 0:00:09]} Rd8 $1 {[%emt 0:00:06]} ({Much less strong is} 34... Rb8 35. Ne6 Rb7 {[#]} 36. Nf8+ $1 Kh8 37. Rc8 Rxd7 38. Rxa8 $16) 35. Qe7 {[%emt 0:00:04]} (35. Qf7 $16) 35... Nf5 {[%emt 0:00:37] Weighted Error Value: White=0.49/Black=0.44} ({Better is} 35... Re8 $1 $11 36. Qf7 Kh8) 1/2-1/2

[Event "31st Kavala Open-A 2022"]
[Site "Kavala"]
[Date "2022.07.26"]
[Round "1.9"]
[White "Karthik Venkataraman"]
[Black "Abrahams, Daniel"]
[Result "1-0"]
[ECO "E11"]
[WhiteElo "2483"]
[BlackElo "2126"]
[Annotator "TA"]
[PlyCount "75"]
[EventDate "2022.07.27"]
[EventType "swiss"]
[EventCountry "GRE"]
[SourceTitle "playchess.com"]
[Source "ChessBase"]
[SourceQuality "1"]
[TimeControl "40/5400+30:1800+30"]

{[%evp 14,74,29,31,36,32,38,32,35,31,49,33,58,46,56,43,76,80,77,87,91,83,87,83,93,29,45,8,11,14,18,35,66,71,75,82,69,89,79,79,72,18,9,8,84,86,90,72,888,779,5218,5002,2206,2180,29987,29988,29994,29995,29995,29996,29996,29997,29999]} 1. d4 {[%emt 0:00:02]} Nf6 {[%emt 0:00:11]} 2. c4 {[%emt 0:00:05]} e6 {[%emt 0:00:08]} 3. Nf3 {[%emt 0:00:02]} Bb4+ {[%emt 0:00:28]} 4. Bd2 {[%emt 0:00:07]} a5 {[%emt 0:00:12]} 5. g3 {[%emt 0:00:06]} d6 {[%emt 0:00:09]} 6. Bg2 {[%emt 0:00:05]} Nbd7 {[%emt 0:00:06]} 7. O-O {[%emt 0:00:06]} e5 {[%emt 0:00:07]} 8. e3 {[%emt 0:00:07] Hoping for Bc1.} Bxd2 {[%emt 0:01:08] 8...Bxd2 is better than 8...c6. E11: Bogo-Indian.} 9. Nfxd2 {[%emt 0:00:46]} exd4 {[%emt 0:03:09]} 10. exd4 {[%emt 0:00:06]} O-O {[%emt 0:00:06] White is slightly better.} 11. Nc3 {[%emt 0:00:03] [#]} Re8 $146 {[%emt 0:01:10]} ({Predecessor:} 11... c6 12. Re1 Nb6 13. Qf3 Be6 14. b3 a4 15. Qd3 Ra5 16. Nf1 axb3 17. axb3 Qa8 {0-1 (51) Gharibyan,M (2346)-Shubin,K (2359) Jermuk 2017}) 12. Qb3 {[%emt 0:01:16]} c6 {[%emt 0:03:03]} 13. Rfe1 {[%emt 0:00:37]} Rxe1+ {[%emt 0:00:19]} 14. Rxe1 {[%emt 0:00:03]} Nb6 {[%emt 0:00:26]} 15. c5 {[%emt 0:02:36]} dxc5 {[%emt 0:11:38]} 16. dxc5 {[%emt 0:00:06]} Nbd7 {[%emt 0:00:05]} (16... Qxd2 $2 17. Rd1 Qd7 18. Rxd7 Nbxd7 19. Qd1 $18) 17. Nde4 {[%emt 0:06:02] And now Nd6 would win. 0x0.0024b2e6f46edp-1022s more active pieces.} Qc7 {[%emt 0:03:33]} 18. a3 {[%emt 0:08:05]} Rb8 {[%emt 0:05:57]} 19. f4 {[%emt 0:07:38]} ({Better is} 19. Qc2 $16) 19... h6 $11 {[%emt 0:03:09]} 20. h3 {[%emt 0:01:11]} b6 {[%emt 0:03:50]} 21. cxb6 {[%emt 0:00:27]} Rxb6 {[%emt 0:00:07]} 22. Qc2 {[%emt 0:00:27]} Nxe4 {[%emt 0:02:44]} 23. Rxe4 {[%emt 0:01:29]} ({Reject} 23. Bxe4 Nf6 $11) 23... Nf6 {[%emt 0:00:21] [#] Inhibits Re8+.} 24. Nd5 $1 {[%emt 0:04:51]} Qd8 {[%emt 0:00:33]} 25. Ne7+ {[%emt 0:04:29]} (25. Nxb6 Bf5 $11) 25... Kh8 {[%emt 0:13:24]} 26. Nxc6 {[%emt 0:00:33]} Qd6 {[%emt 0:01:03] [#]} 27. Re2 {[%emt 0:03:24]} ({But not} 27. Nxa5 $2 Bf5 28. Nc4 Qc7 $17) (27. Ne5 $1 $16 {[%cal Re5f7]} Be6 28. Re2) 27... Bxh3 $1 {[%emt 0:06:48]} 28. Rd2 {[%emt 0:10:36]} ({Much worse is} 28. Nxa5 Qd4+ 29. Kh1 Bxg2+ 30. Rxg2 Rb5 $19) 28... Qe6 {[%emt 0:01:40]} (28... Bf5 $1 $11 {remains equal.}) 29. Rd8+ $16 {[%emt 0:01:44]} Ng8 {[%emt 0:00:12] [#] ...Bxg2 is the strong threat.} 30. Bd5 $36 {[%emt 0:06:56][%mdl 2048] White has strong initiative. Chess con chili.} Qg4 {[%emt 0:09:21][%mdl 8192] Black cannot hold the game after this.} (30... Qf6 $16) 31. Kf2 {[%emt 0:01:29] aiming for Ne5.} Qh5 {[%emt 0:03:34]} 32. Ne7 {[%emt 0:01:30][%csl Ge7][%cal Rd8g8]} Bf5 {[%emt 0:02:08]} 33. Nxf5 {[%emt 0:00:33] Threatening mate with Ne7.} Rf6 {[%emt 0:00:25] [#]} 34. Qc8 $1 {[%emt 0:00:47] White mates.} Rxf5 {[%emt 0:00:38]} (34... Qh2+ 35. Ke1) 35. Rxg8+ {[%emt 0:00:06]} Kh7 {[%emt 0:00:07]} 36. Rh8+ {[%emt 0:00:04]} Kg6 {[%emt 0:00:08]} 37. Qc6+ {[%emt 0:00:04]} f6 {[%emt 0:00:19]} 38. Qe8# {[%emt 0:00:05] Weighted Error Value: White=0.10 (very precise) /Black=0.43} 1-0

[Event "31st Kavala Open-A 2022"]
[Site "Kavala"]
[Date "2022.07.26"]
[Round "1.10"]
[White "Yaniv, Ori"]
[Black "Bharath Subramaniyam H"]
[Result "1/2-1/2"]
[ECO "A31"]
[WhiteElo "2108"]
[BlackElo "2479"]
[Annotator "TA"]
[PlyCount "69"]
[EventDate "2022.07.27"]
[EventType "swiss"]
[EventCountry "GRE"]
[SourceTitle "playchess.com"]
[Source "ChessBase"]
[SourceQuality "1"]
[TimeControl "40/5400+30:1800+30"]

{[%evp 30,69,39,30,60,51,62,58,44,26,112,110,202,199,203,203,279,266,254,261,237,243,255,256,272,133,131,0,0,0,0,-10,0,0,0,0,0,0,0,0,0,0]} 1. e4 {[%emt 0:00:23]} c5 {[%emt 0:00:06]} 2. Nf3 {[%emt 0:00:30]} e6 {[%emt 0:00:06]} 3. d4 {[%emt 0:00:00]} cxd4 {[%emt 0:00:05]} 4. Nxd4 {[%emt 0:00:00]} a6 {[%emt 0:00:06]} 5. c4 {[%emt 0:00:47]} Nf6 {[%emt 0:00:07]} 6. Nc3 {[%emt 0:00:08]} Qc7 {[%emt 0:00:07]} 7. a3 {[%emt 0:00:07]} b6 {[%emt 0:00:05]} 8. Be2 {[%emt 0:00:30]} Bb7 {[%emt 0:00:06]} 9. f3 {[%emt 0:00:30]} Be7 {[%emt 0:00:05]} 10. Be3 {[%emt 0:00:30]} d6 {[%emt 0:00:30]} 11. O-O {[%emt 0:00:30]} Nbd7 {[%emt 0:00:30]} 12. Rc1 {[%emt 0:00:30]} O-O {[%emt 0:00:30]} 13. Qd2 {[%emt 0:00:30]} Rac8 {[%emt 0:00:30]} 14. Rfd1 {[%emt 0:00:30]} Rfe8 {[%emt 0:00:30]} 15. b4 {[%emt 0:00:30]} Qb8 {[%emt 0:00:30]} 16. Nb3 {[%emt 0:00:30] 16.Bf1 is the hot move.} Bd8 {[%emt 0:00:30] A31: Symmetrical English: 2 Nf3 Nf6 3 d4.} 17. Bf4 {[%emt 0:00:30]} (17. Qxd6 Bc7 18. Qd3 Bxh2+ 19. Kf1 Red8 $11) 17... Ne5 {[%emt 0:00:30]} 18. Bxe5 {[%emt 0:00:54]} (18. Qxd6 {[#]} Nxf3+ $1 19. gxf3 Bc7 20. Qxc7 Rxc7 $17) 18... dxe5 {[%emt 0:00:56] White is slightly better.} 19. c5 {[%emt 0:04:08]} b5 {[%emt 0:16:45]} (19... bxc5 $11 {keeps the balance.} 20. Nxc5 (20. bxc5 Be7 $15) 20... Be7) 20. a4 $16 {[%emt 0:00:30] [#]} Bc6 $146 {[%emt 0:00:30]} (20... bxa4 $16 21. Nxa4 Bc6) ({Predecessor:} 20... bxa4 21. Nxa4 Nh5 22. Na5 h6 23. Nxb7 Bg5 24. Qc3 Qxb7 25. Nb6 Bxc1 26. Nxc8 Rxc8 27. Rxc1 {1-0 (53) Cotic,B (2039)-Fus,J (2190) Tornelo INT 2020}) 21. axb5 $18 {[%emt 0:00:30]} axb5 {[%emt 0:00:30]} 22. Ra1 {[%emt 0:00:30]} Bc7 {[%emt 0:00:30]} 23. Na5 {[%emt 0:00:30]} Bd7 {[%emt 0:00:30]} 24. Qe1 {[%emt 0:00:30]} Red8 {[%emt 0:00:30]} 25. Qf1 {[%emt 0:00:30]} Be8 {[%emt 0:00:30]} 26. Rxd8 {[%emt 0:00:30]} ({Not} 26. Nxb5 Rxd1 27. Rxd1 Bxa5 28. bxa5 Rxc5 $14) 26... Rxd8 {[%emt 0:00:30]} 27. Bxb5 {[%emt 0:00:30]} (27. Nxb5 $18 {is the precise move to win.} Bxb5 28. Bxb5 Bxa5 29. Rxa5) 27... Rd4 $16 {[%emt 0:00:30]} 28. Nc6 {[%emt 0:00:30] White is more active.} (28. Bxe8 $16 Qxb4 29. Nb5 (29. Bxf7+ Kxf7 30. Nb5 Bxa5 $17) 29... Bxa5 30. Nxd4 Qxd4+ 31. Kh1 Qxc5 32. Bb5) 28... Bxc6 $11 {[%emt 0:00:30] The position is equal.} 29. Bxc6 {[%emt 0:00:30]} Qxb4 {[%emt 0:00:30]} 30. Nb5 {[%emt 0:00:30] [#] Threatens to win with Kh1.} Rd8 $1 {[%emt 0:00:30]} 31. Qc1 {[%emt 0:00:30]} Ba5 {[%emt 0:00:30]} 32. Rb1 {[%emt 0:00:30]} Qa4 {[%emt 0:00:30]} 33. Ra1 {[%emt 0:00:30]} Qb4 {[%emt 0:00:30]} 34. Rb1 {[%emt 0:00:30]} Qa4 {[%emt 0:00:30]} 35. Ra1 {[%emt 0:16:22] White really could win this.  Weighted Error Value: White=0.22 (precise) /Black=0.21 (precise)} 1/2-1/2

[Event "31st Kavala Open-A 2022"]
[Site "Kavala"]
[Date "2022.07.26"]
[Round "1.11"]
[White "Vrolijk, Liam"]
[Black "Apostolakakis, Konstantinos"]
[Result "1-0"]
[ECO "E14"]
[WhiteElo "2464"]
[BlackElo "2072"]
[Annotator "TA"]
[PlyCount "91"]
[EventDate "2022.07.27"]
[EventType "swiss"]
[EventCountry "GRE"]
[SourceTitle "playchess.com"]
[Source "ChessBase"]
[SourceQuality "1"]
[TimeControl "40/5400+30:1800+30"]

{[%evp 24,91,62,59,53,27,29,16,73,0,22,0,5,0,4,7,3,8,25,26,32,25,30,16,22,24,28,20,23,21,21,24,26,25,27,0,18,0,15,0,8,-34,-35,-34,-7,-7,0,-14,0,0,0,0,478,472,460,470,465,450,583,572,630,644,841,824,936,924,1252,1225,29988,1177]} 1. d4 {[%emt 0:00:04]} Nf6 {[%emt 0:00:09]} 2. c4 {[%emt 0:00:08]} e6 {[%emt 0:00:12]} 3. Nf3 {[%emt 0:00:17]} Bb4+ {[%emt 0:00:27]} 4. Nbd2 {[%emt 0:00:33]} O-O {[%emt 0:04:08]} 5. a3 {[%emt 0:00:26]} Bxd2+ {[%emt 0:01:03]} 6. Qxd2 {[%emt 0:00:36]} b6 {[%emt 0:00:37]} 7. e3 {[%emt 0:00:47]} Bb7 {[%emt 0:00:43]} 8. Be2 {[%emt 0:00:52]} d6 {[%emt 0:02:06]} 9. O-O {[%emt 0:00:34]} Nbd7 {[%emt 0:02:28]} 10. b4 {[%emt 0:00:24]} Ne4 {[%emt 0:02:07]} 11. Qc2 {[%emt 0:00:14]} c5 {[%emt 0:08:36]} 12. Bb2 {[%emt 0:01:56]} Qe7 {[%emt 0:03:20]} 13. Rfd1 {[%emt 0:02:48]} Rfd8 {[%emt 0:05:42] [#] E14: Queen's Indian: Classical Variation (4 e3).} 14. dxc5 $146 {[%emt 0:08:17]} ({Predecessor:} 14. Bd3 Ndf6 15. Ne1 d5 16. f3 dxc4 17. Bxe4 Nxe4 18. fxe4 cxb4 19. axb4 Qxb4 20. Ra4 Qb5 21. Rxc4 {½-½ (60) Rivera,I (2228)-Cardenas,A (1982) Medellin 2018}) 14... dxc5 {[%emt 0:01:13]} 15. b5 {[%emt 0:02:26]} Ng5 {[%emt 0:19:29] [#]} (15... Nd6 $11) 16. Ne1 {[%emt 0:07:19] White is more active.} ({White should play} 16. Nxg5 $1 $16 Qxg5 17. g3) 16... f6 {[%emt 0:06:00]} 17. a4 {[%emt 0:04:11]} a5 {[%emt 0:05:10]} 18. f3 {[%emt 0:11:31]} Nf8 {[%emt 0:02:07]} 19. Nd3 {[%emt 0:03:00][%cal Be1d3,Bd3f2,Bf2e4,Be4c3,Bc3b1,Bb1d2][%mdl 32]} e5 {[%emt 0:07:25] [#] White must now prevent ...e4.} 20. Nf2 {[%emt 0:00:54]} Nf7 {[%emt 0:02:20]} 21. Ne4 {[%emt 0:05:18]} Rxd1+ {[%emt 0:01:14]} 22. Rxd1 {[%emt 0:00:07]} Rd8 {[%emt 0:00:26]} 23. Bd3 {[%emt 0:02:46]} Rd7 {[%emt 0:03:14]} 24. Nc3 {[%emt 0:01:40]} Qd8 {[%emt 0:01:26]} 25. Kf2 {[%emt 0:00:54]} Ba8 {[%emt 0:02:34]} 26. Ke1 {[%emt 0:03:13]} Nd6 {[%emt 0:01:02]} 27. Be2 {[%emt 0:01:58]} Nf7 {[%emt 0:02:47]} 28. Rxd7 {[%emt 0:01:52]} Qxd7 {[%emt 0:00:07]} 29. Nb1 {[%emt 0:01:34]} Bb7 {[%emt 0:00:34]} 30. Nd2 {[%emt 0:00:54]} Ba8 {[%emt 0:00:57]} 31. Kf2 {[%emt 0:00:50]} Bb7 {[%emt 0:00:05]} 32. g4 {[%emt 0:01:40]} h5 {[%emt 0:01:46]} 33. h3 {[%emt 0:01:09]} hxg4 {[%emt 0:01:01]} 34. hxg4 {[%emt 0:00:09]} Ng5 {[%emt 0:01:05]} 35. Bc3 {[%emt 0:00:54]} g6 {[%emt 0:05:01] And now ...Qh7 would win.} 36. f4 $1 {[%emt 0:02:44]} exf4 {[%emt 0:00:51]} 37. exf4 {[%emt 0:00:07]} Qh7 $2 {[%emt 0:06:47][%mdl 8192]} 38. fxg5 $18 {[%emt 0:02:21]} Qh4+ {[%emt 0:00:08]} 39. Ke3 {[%emt 0:00:57][%cal Bf2e3,Be3d3,Bd3c2][%mdl 32]} Qxg5+ {[%emt 0:00:09]} (39... Qg3+ $2 40. Nf3 fxg5 41. Be5) 40. Kd3 {[%emt 0:02:01]} Qf4 {[%emt 0:03:26] aiming for ...Qg3+.} 41. Qd1 {[%emt 0:01:02]} f5 {[%emt 0:11:38]} 42. Kc2 {[%emt 0:00:31]} Ne6 {[%emt 0:01:38]} 43. gxf5 {[%emt 0:00:39]} Qxf5+ {[%emt 0:01:39]} 44. Bd3 {[%emt 0:00:11]} Qf2 {[%emt 0:00:31]} 45. Qg4 {[%emt 0:00:51]} Nf4 {[%emt 0:00:20]} 46. Bxg6 {[%emt 0:00:16] Weighted Error Value: White=0.10 (very precise) /Black=0.59} (46. Be5 $142 Qh2 47. Bxf4 Qh5 48. Qe6+ Kg7 49. Be5+ Kf8 50. Bf6 Qh7 51. Qd6+ Kg8 52. Qd8+ Kf7 53. Qe7+ Kg8 54. Qe8#) 1-0